fUST/lending_fUST_20241108
["ID","MTS","AMOUNT","RATE_DAILY","PERIOD"]
[341634088,1731048642224,-500.0,0.00022191,2]
[341634089,1731048642234,-500.0,0.00022191,2]
[341634090,1731048642243,-500.0,0.00022191,2]
[341634091,1731048642253,-500.0,0.00022191,2]
[341634092,1731048642263,-500.0,0.00022191,2]
[341634093,1731048642272,-718.99,0.00022191,2]
[341634094,1731048642282,-500.0,0.00022191,2]
[341634095,1731048642291,-500.0,0.00022191,2]
[341634096,1731048642300,-500.0,0.00022191,2]
[341634097,1731048642310,-500.0,0.00022191,2]
[341634098,1731048642319,-306.27964553,0.00022191,2]
[341634099,1731048642329,-500.0,0.00022191,2]
[341634100,1731048642338,-500.0,0.00022191,2]
[341634101,1731048642348,-500.0,0.00022191,2]
[341634102,1731048642358,-1195.23,0.00022191,2]
[341634103,1731048642368,-182.51408584,0.00022191,2]
[341634104,1731048642377,-500.0,0.00022191,2]
[341634105,1731048642387,-500.0,0.00022191,2]
[341634106,1731048642396,-500.0,0.00022191,2]
[341634107,1731048642406,-500.0,0.00022191,2]
[341634108,1731048642415,-500.0,0.00022191,2]
[341634109,1731048642425,-4202.22,0.00022191,2]
[341634110,1731048642434,-500.0,0.00022191,2]
[341634111,1731048642443,-3059.68,0.00022191,2]
[341634112,1731048642453,-500.0,0.00022191,2]
[341634113,1731048642462,-500.0,0.00022191,2]
[341634114,1731048642472,-500.0,0.00022191,2]
[341634115,1731048642482,-500.0,0.00022191,2]
[341634116,1731048642491,-948.03,0.00022191,2]
[341634117,1731048642603,-500.0,0.00022191,2]
[341634118,1731048642614,-500.0,0.00022191,2]
[341634119,1731048642624,-5276.49,0.00022191,2]
[341634120,1731048642633,-500.0,0.00022191,2]
[341634121,1731048642643,-628.81553519,0.00022191,2]
[341634122,1731048642653,-9435.29,0.00022191,2]
[341634123,1731048642662,-500.0,0.00022191,2]
[341634124,1731048642671,-500.0,0.00022191,2]
[341634125,1731048642681,-500.0,0.00022191,2]
[341634126,1731048642691,-11094.93,0.00022191,2]
[341634127,1731048642700,-624.26031676,0.00022191,2]
[341634128,1731048642710,-500.0,0.00022191,2]
[341634129,1731048642720,-518.45,0.00022191,2]
[341634130,1731048642729,-500.0,0.00022465,2]
[341634131,1731048642739,-500.0,0.00022465,2]
[341634132,1731048642749,-500.0,0.00022465,2]
[341634133,1731048642758,-211.90631764,0.00022465,2]
[341634134,1731048642767,-500.0,0.00022465,2]
[341634135,1731048642777,-500.0,0.00022465,2]
[341634136,1731048642786,-500.0,0.00022465,2]
[341634137,1731048642796,-500.0,0.00022465,2]
[341634138,1731048642805,-500.0,0.00022465,2]
[341634139,1731048642815,-500.0,0.00022465,2]
[341634140,1731048642825,-500.0,0.00022465,2]
[341634141,1731048642834,-500.0,0.00022465,2]
[341634142,1731048642843,-500.0,0.00022465,2]
[341634143,1731048642852,-500.0,0.00022465,2]
[341634144,1731048642862,-500.0,0.00022465,2]
[341634145,1731048642871,-500.0,0.00022465,2]
[341634146,1731048642881,-500.0,0.00022465,2]
[341634147,1731048642890,-500.0,0.00022465,2]
[341634148,1731048642899,-500.0,0.00022465,2]
[341634149,1731048642909,-693.29,0.00022465,2]
[341634150,1731048642918,-500.0,0.00022465,2]
[341634151,1731048642927,-500.0,0.00022465,2]
[341634152,1731048642938,-500.0,0.00022465,2]
[341634153,1731048642947,-500.0,0.00022465,2]
[341634154,1731048642956,-500.0,0.00022465,2]
[341634155,1731048642965,-1372.23,0.00022465,2]
[341634156,1731048642975,-500.0,0.00022465,2]
[341634157,1731048642985,-500.0,0.00022465,2]
[341634158,1731048642994,-500.0,0.00022465,2]
[341634160,1731048643003,-500.0,0.00022465,2]
[341634162,1731048643012,-485.91707152,0.00022465,2]
[341634164,1731048643021,-561.51,0.00022465,2]
[341634165,1731048643031,-500.0,0.00022465,2]
[341634166,1731048643040,-660.42,0.00022465,2]
[341634167,1731048643050,-500.0,0.00022465,2]
[341634168,1731048643062,-1081.66,0.00022465,2]
[341634170,1731048643071,-500.0,0.00022465,2]
[341634171,1731048643080,-500.0,0.00022465,2]
[341634172,1731048643090,-500.0,0.00022465,2]
[341634173,1731048643100,-500.0,0.00022465,2]
[341634174,1731048643109,-500.0,0.00022465,2]
[341634175,1731048643119,-500.0,0.00022465,2]
[341634176,1731048643128,-500.0,0.00022465,2]
[341634177,1731048643139,-500.0,0.00022465,2]
[341634178,1731048643148,-654.12,0.00022465,2]
[341634179,1731048643158,-500.0,0.00022465,2]
[341634181,1731048643167,-500.0,0.00022465,2]
[341634183,1731048643176,-516.86,0.00022465,2]
[341634185,1731048643185,-500.0,0.00022465,2]
[341634186,1731048643195,-174.73132111,0.00022465,2]
[341634188,1731048643204,-500.0,0.00022465,2]
[341634189,1731048643214,-500.0,0.00022465,2]
[341634191,1731048643223,-500.0,0.00022465,2]
[341634192,1731048643233,-500.0,0.00022465,2]
[341634193,1731048643242,-535.13406503,0.00022465,2]
[341634194,1731048643251,-911.02,0.00022465,2]
[341634195,1731048643261,-500.0,0.00022465,2]
[341634196,1731048643270,-520.02,0.00022465,2]
[341634197,1731048643279,-500.0,0.00022465,2]
[341634198,1731048643289,-500.0,0.00022465,2]
[341634199,1731048643299,-500.0,0.00022465,2]
[341634200,1731048643308,-500.0,0.00022465,2]
[341634201,1731048643318,-976.61,0.00022465,2]
[341634202,1731048643327,-500.0,0.00022465,2]
[341634203,1731048643337,-500.0,0.00022465,2]
[341634204,1731048643347,-500.0,0.00022465,2]
[341634205,1731048643356,-500.0,0.00022465,2]
[341634206,1731048643366,-500.0,0.00022465,2]
[341634207,1731048643375,-500.0,0.00022465,2]
[341634208,1731048643386,-707.09,0.00022465,2]
[341634209,1731048643395,-500.0,0.00022465,2]
[341634211,1731048643405,-627.82,0.00022465,2]
[341634213,1731048643415,-188.14129703,0.00022465,2]
[341634215,1731048643424,-500.0,0.00022465,2]
[341634217,1731048643434,-565.18,0.00022465,2]
[341634219,1731048643443,-500.0,0.00022465,2]
[341634221,1731048643453,-500.0,0.00022465,2]
[341634224,1731048643463,-3868.8,0.00022465,2]
[341634226,1731048643473,-500.0,0.00022465,2]
[341634227,1731048643482,-500.0,0.00022465,2]
[341634230,1731048643492,-500.0,0.00022465,2]
[341634231,1731048643501,-500.0,0.00022465,2]
[341634233,1731048643511,-500.0,0.00022465,2]
[341634236,1731048643521,-500.0,0.00022465,2]
[341634238,1731048643531,-718.99,0.00022465,2]
[341634240,1731048643539,-500.0,0.00022465,2]
[341634242,1731048643549,-500.0,0.00022465,2]
[341634244,1731048643559,-500.0,0.00022465,2]
[341634246,1731048643568,-500.0,0.00022465,2]
[341634248,1731048643577,-500.0,0.00022465,2]
[341634250,1731048643587,-1195.23,0.00022465,2]
[341634252,1731048643597,-500.0,0.00022465,2]
[341634254,1731048643606,-500.0,0.00022465,2]
[341634256,1731048643616,-500.0,0.00022465,2]
[341634258,1731048643626,-500.0,0.00022465,2]
[341634260,1731048643635,-4202.22,0.00022465,2]
[341634262,1731048643644,-500.0,0.00022465,2]
[341634264,1731048643654,-3059.68,0.00022465,2]
[341634266,1731048643663,-500.0,0.00022465,2]
[341634268,1731048643673,-500.0,0.00022465,2]
[341634270,1731048643682,-500.0,0.00022465,2]
[341634272,1731048643692,-500.0,0.00022465,2]
[341634274,1731048643701,-948.03,0.00022465,2]
[341634276,1731048643711,-500.0,0.00022465,2]
[341634278,1731048643720,-500.0,0.00022465,2]
[341634279,1731048643729,-5276.49,0.00022465,2]
[341634281,1731048643739,-500.0,0.00022465,2]
[341634283,1731048643748,-9435.29,0.00022465,2]
[341634285,1731048643757,-280.47818391,0.00022465,2]
[341634287,1731048643766,-438.98538127,0.00022465,2]
[341634289,1731048643775,-11094.93,0.00022465,2]
[341634291,1731048643785,-500.0,0.00022711,2]
[341634293,1731048643794,-500.0,0.00022739,2]
[341634295,1731048643803,-500.0,0.00022739,2]
[341634297,1731048643812,-500.0,0.00022739,2]
[341634299,1731048643821,-351.02363395,0.00022739,2]
[341634301,1731048643830,-572.14790739,0.00022739,2]
[341634303,1731048643839,-500.0,0.00022739,2]
[341634305,1731048643848,-574.04535539,0.00022739,2]
[341634307,1731048643857,-500.0,0.00022739,2]
[341634309,1731048643867,-500.0,0.00022739,2]
[341634311,1731048643877,-151.0,0.00022739,7]
[341634313,1731048643886,-500.0,0.00022739,2]
[341634315,1731048643895,-500.0,0.00022739,2]
[341634317,1731048643904,-500.0,0.00022739,2]
[341634319,1731048643913,-500.0,0.00022739,2]
[341634321,1731048643922,-500.0,0.00022739,2]
[341634323,1731048643931,-500.0,0.00022739,2]
[341634326,1731048643940,-151.0,0.00022739,7]
[341634329,1731048643950,-155.866321,0.00022739,7]
[341634331,1731048643959,-500.0,0.00022739,2]
[341634333,1731048643968,-255.016608,0.00022739,7]
[341634335,1731048643977,-500.0,0.00022739,2]
[341634337,1731048643986,-500.0,0.00022739,2]
[341634339,1731048643996,-693.29,0.00022739,2]
[341634341,1731048644005,-263.2837069,0.00022739,2]
[341634343,1731048644013,-500.0,0.00022739,2]
[341634345,1731048644022,-500.0,0.00022739,2]
[341634347,1731048644032,-500.0,0.00022739,2]
[341634349,1731048644041,-500.0,0.00022739,2]
[341634351,1731048644050,-1372.23,0.00022739,2]
[341634353,1731048644061,-500.0,0.00022739,2]
[341634355,1731048644071,-500.0,0.00022739,2]
[341634357,1731048644080,-500.0,0.00022739,2]
[341634359,1731048644089,-500.0,0.00022739,2]
[341634361,1731048644099,-561.51,0.00022739,2]
[341634363,1731048644108,-500.0,0.00022739,2]
[341634365,1731048644119,-660.42,0.00022739,2]
[341634367,1731048644128,-500.0,0.00022739,2]
[341634369,1731048644139,-1081.66,0.00022739,2]
[341634371,1731048644148,-323.85834511,0.00022739,2]
[341634373,1731048644157,-500.0,0.00022739,2]
[341634375,1731048644167,-500.0,0.00022739,2]
[341634377,1731048644177,-500.0,0.00022739,2]
[341634379,1731048644187,-500.0,0.00022739,2]
[341634381,1731048644196,-565.41547369,0.00022739,2]
[341634383,1731048644205,-500.0,0.00022739,2]
[341634385,1731048644214,-500.0,0.00022739,2]
[341634387,1731048644224,-654.12,0.00022739,2]
[341634389,1731048644234,-500.0,0.00022739,2]
[341634391,1731048644244,-524.93234747,0.00022739,2]
[341634393,1731048644253,-516.86,0.00022739,2]
[341634395,1731048644263,-314.47574854,0.00022739,2]
[341634397,1731048644272,-500.0,0.00022739,2]
[341634399,1731048644282,-401.68108329,0.00022739,2]
[341634401,1731048644291,-500.0,0.00022739,2]
[341634403,1731048644301,-500.0,0.00022739,2]
[341634405,1731048644311,-911.02,0.00022739,2]
[341634407,1731048644320,-500.0,0.00022739,2]
[341634409,1731048644329,-520.02,0.00022739,2]
[341634411,1731048644338,-500.0,0.00022739,2]
[341634413,1731048644348,-500.0,0.00022739,2]
[341634415,1731048644357,-500.0,0.00022739,2]
[341634417,1731048644367,-500.0,0.00022739,2]
[341634419,1731048644376,-976.61,0.00022739,2]
[341634421,1731048644385,-500.0,0.00022739,2]
[341634423,1731048644395,-500.0,0.00022739,2]
[341634425,1731048644404,-500.0,0.00022739,2]
[341634427,1731048644413,-500.0,0.00022739,2]
[341634429,1731048644422,-500.0,0.00022739,2]
[341634431,1731048644432,-500.0,0.00022739,2]
[341634433,1731048644441,-707.09,0.00022739,2]
[341634435,1731048644450,-173.05117365,0.00022739,2]
[341634437,1731048644460,-627.82,0.00022739,2]
[341634439,1731048644469,-500.0,0.00022739,2]
[341634441,1731048644479,-565.18,0.00022739,2]
[341634443,1731048644488,-500.0,0.00022739,2]
[341634445,1731048644498,-500.0,0.00022739,2]
[341634447,1731048644507,-3868.8,0.00022739,2]
[341634449,1731048644517,-500.0,0.00022739,2]
[341634451,1731048644527,-500.0,0.00022739,2]
[341634453,1731048644537,-500.0,0.00022739,2]
[341634455,1731048644546,-500.0,0.00022739,2]
[341634457,1731048644556,-500.0,0.00022739,2]
[341634458,1731048644566,-500.0,0.00022739,2]
[341634460,1731048644575,-718.99,0.00022739,2]
[341634462,1731048644585,-500.0,0.00022739,2]
[341634464,1731048644595,-500.0,0.00022739,2]
[341634466,1731048644605,-500.0,0.00022739,2]
[341634468,1731048644615,-500.0,0.00022739,2]
[341634470,1731048644624,-1195.23,0.00022739,2]
[341634472,1731048644634,-500.0,0.00022739,2]
[341634474,1731048644643,-500.0,0.00022739,2]
[341634476,1731048644653,-242.32908628,0.00022739,2]
[341634478,1731048644662,-500.0,0.00022739,2]
[341634489,1731048644745,-4202.22,0.00022739,2]
[341634491,1731048644765,-500.0,0.00022739,2]
[341634493,1731048644774,-3059.68,0.00022739,2]
[341634495,1731048644783,-500.0,0.00022739,2]
[341634497,1731048644792,-500.0,0.00022739,2]
[341634499,1731048644801,-500.0,0.00022739,2]
[341634501,1731048644810,-500.0,0.00022739,2]
[341634503,1731048644820,-948.03,0.00022739,2]
[341634505,1731048644829,-541.66879555,0.00022739,2]
[341634507,1731048644838,-500.0,0.00022739,2]
[341634509,1731048644847,-5276.49,0.00022739,2]
[341634511,1731048644856,-500.0,0.00022739,2]
[341634513,1731048644866,-9435.29,0.00022739,2]
[341634515,1731048644875,-11094.93,0.00022739,2]
[341634517,1731048644885,-420.0,0.00022753,2]
[341634519,1731048644894,-168.361404,0.00022773,2]
[341634521,1731048644902,-500.0,0.00022861,2]
[341634523,1731048644911,-501.12172304,0.00022861,2]
[341634525,1731048644920,-500.0,0.00022861,2]
[341634527,1731048644929,-500.0,0.00022861,2]
[341634529,1731048644938,-11189.90178686,0.00023,2]
[341634531,1731048644947,-909.45707861,0.00023,2]
[341634533,1731048644956,-420.0,0.00023007,2]
[341634535,1731048644965,-151.0,0.00023013,7]
[341634537,1731048644974,-500.0,0.00023013,2]
[341634539,1731048644984,-151.0,0.00023013,7]
[341634541,1731048644993,-500.0,0.00023013,2]
[341634543,1731048645002,-500.0,0.00023013,2]
[341634545,1731048645011,-151.0,0.00023013,7]
[341634547,1731048645020,-500.0,0.00023013,2]
[341634549,1731048645029,-500.0,0.00023013,2]
[341634551,1731048645038,-151.0,0.00023013,7]
[341634553,1731048645047,-500.0,0.00023013,2]
[341634555,1731048645056,-151.0,0.00023013,7]
[341634556,1731048645069,-151.0,0.00023013,7]
[341634559,1731048645079,-151.0,0.00023013,7]
[341634561,1731048645088,-500.0,0.00023013,2]
[341634563,1731048645099,-500.0,0.00023013,2]
[341634565,1731048645109,-500.0,0.00023013,2]
[341634567,1731048645120,-640.80075689,0.00023013,2]
[341634569,1731048645130,-500.0,0.00023013,2]
[341634571,1731048645139,-500.0,0.00023013,2]
[341634573,1731048645148,-500.0,0.00023013,2]
[341634575,1731048645157,-151.0,0.00023013,7]
[341634577,1731048645167,-500.0,0.00023013,2]
[341634579,1731048645176,-500.0,0.00023013,2]
[341634581,1731048645186,-693.29,0.00023013,2]
[341634583,1731048645195,-151.0,0.00023013,7]
[341634585,1731048645205,-221.492925,0.00023013,7]
[341634587,1731048645214,-151.0,0.00023013,7]
[341634589,1731048645223,-500.0,0.00023013,2]
[341634591,1731048645233,-500.0,0.00023013,2]
[341634593,1731048645242,-151.0,0.00023013,7]
[341634595,1731048645251,-151.0,0.00023013,7]
[341634597,1731048645259,-151.0,0.00023013,7]
[341634599,1731048645269,-151.0,0.00023013,7]
[341634601,1731048645278,-535.79637136,0.00023013,2]
[341634603,1731048645287,-500.0,0.00023013,2]
[341634605,1731048645296,-1372.23,0.00023013,2]
[341634607,1731048645305,-500.0,0.00023013,2]
[341634609,1731048645315,-376.920108,0.00023013,7]
[341634611,1731048645324,-376.920108,0.00023013,7]
[341634613,1731048645333,-500.0,0.00023013,2]
[341634615,1731048645343,-500.0,0.00023013,2]
[341634617,1731048645352,-495.94192153,0.00023013,2]
[341634619,1731048645361,-561.51,0.00023013,2]
[341634621,1731048645374,-270.13826624,0.00023013,2]
[341634623,1731048645383,-660.42,0.00023013,2]
[341634625,1731048645393,-500.0,0.00023013,2]
[341634627,1731048645402,-1081.66,0.00023013,2]
[341634629,1731048645412,-500.0,0.00023013,2]
[341634631,1731048645421,-500.0,0.00023013,2]
[341634633,1731048645431,-500.0,0.00023013,2]
[341634635,1731048645441,-500.0,0.00023013,2]
[341634637,1731048645451,-500.0,0.00023013,2]
[341634639,1731048645461,-500.0,0.00023013,2]
[341634641,1731048645471,-654.12,0.00023013,2]
[341634643,1731048645480,-500.0,0.00023013,2]
[341634645,1731048645490,-516.86,0.00023013,2]
[341634647,1731048645499,-500.0,0.00023013,2]
[341634649,1731048645509,-500.0,0.00023013,2]
[341634651,1731048645519,-500.0,0.00023013,2]
[341634653,1731048645530,-911.02,0.00023013,2]
[341634655,1731048645540,-554.59532622,0.00023013,2]
[341634657,1731048645549,-520.02,0.00023013,2]
[341634659,1731048645558,-500.0,0.00023013,2]
[341634661,1731048645568,-500.0,0.00023013,2]
[341634663,1731048645578,-500.0,0.00023013,2]
[341634665,1731048645589,-500.0,0.00023013,2]
[341634667,1731048645599,-976.61,0.00023013,2]
[341634669,1731048645609,-500.0,0.00023013,2]
[341634671,1731048645630,-500.0,0.00023013,2]
[341634673,1731048645641,-500.0,0.00023013,2]
[341634676,1731048645653,-500.0,0.00023013,2]
[341634678,1731048645664,-500.0,0.00023013,2]
[341634680,1731048645675,-500.0,0.00023013,2]
[341634681,1731048645692,-707.09,0.00023013,2]
[341634683,1731048645706,-627.82,0.00023013,2]
[341634685,1731048645717,-500.0,0.00023013,2]
[341634687,1731048645728,-565.18,0.00023013,2]
[341634689,1731048645739,-448.94205238,0.00023013,2]
[341634691,1731048645751,-500.0,0.00023013,2]
[341634693,1731048645762,-3868.8,0.00023013,2]
[341634695,1731048645773,-500.0,0.00023013,2]
[341634697,1731048645784,-500.0,0.00023013,2]
[341634699,1731048645796,-500.0,0.00023013,2]
[341634701,1731048645808,-500.0,0.00023013,2]
[341634703,1731048645819,-500.0,0.00023013,2]
[341634705,1731048645830,-500.0,0.00023013,2]
[341634707,1731048645841,-718.99,0.00023013,2]
[341634709,1731048645852,-500.0,0.00023013,2]
[341634711,1731048645865,-500.0,0.00023013,2]
[341634713,1731048645878,-500.0,0.00023013,2]
[341634714,1731048645889,-500.0,0.00023013,2]
[341634717,1731048645901,-1195.23,0.00023013,2]
[341634719,1731048645914,-500.0,0.00023013,2]
[341634721,1731048645926,-500.0,0.00023013,2]
[341634722,1731048645937,-500.0,0.00023013,2]
[341634724,1731048645948,-3948.13177816,0.00023013,2]
[341634738,1731048646088,-254.08822184,0.00023013,2]
[341634739,1731048646099,-3.00177816,0.00023013,2]
[341634743,1731048646117,-319.2398709,0.00023013,2]
[341634918,1731048648055,-518.45,0.00022465,2]
[341634921,1731048648065,-177.75835094,0.00023013,2]
[341634922,1731048648075,-3059.68,0.00023013,2]
[341634924,1731048648084,-500.0,0.00023013,2]
[341634926,1731048648093,-500.0,0.00023013,2]
[341634929,1731048648103,-500.0,0.00023013,2]
[341634930,1731048648112,-500.0,0.00023013,2]
[341634932,1731048648122,-948.03,0.00023013,2]
[341634934,1731048648131,-500.0,0.00023013,2]
[341634936,1731048648140,-5276.49,0.00023013,2]
[341634938,1731048648151,-500.0,0.00023013,2]
[341634940,1731048648160,-3648.67106211,0.00023013,2]
[341634986,1731048648582,-500.0,0.00021917,2]
[341634987,1731048648592,-500.0,0.00021917,2]
[341634988,1731048648602,-500.0,0.00021917,2]
[341634989,1731048648611,-500.0,0.00022191,2]
[341634990,1731048648622,-500.0,0.00022191,2]
[341634991,1731048648631,-500.0,0.00022191,2]
[341634992,1731048648641,-518.45,0.00022739,2]
[341634993,1731048648651,-5313.41138182,0.00023013,2]
[341634994,1731048648663,-473.20755607,0.00023013,2]
[341634995,1731048648752,-26.79244393,0.00023013,2]
[341635046,1731048683114,164.230298,0.00013973,2]
[341635047,1731048754467,312.13367358,0.00020785,2]
[341635051,1731049101448,2321.10229976,0.00020843,2]
[341635052,1731049183775,16604.5337349,0.00020695,2]
[341635053,1731049198007,694.44444444,0.00020843,2]
[341635054,1731049312006,153.24183545,0.000208,2]
[341635055,1731049363564,175.315309,0.00020617,2]
[341635057,1731049377777,200.75107,0.00013973,2]
[341635058,1731049378024,200.75107,0.00020447,2]
[341635218,1731049829597,160.0,0.00020843,2]
[341635288,1731049832886,-300.0,0.00020856,2]
[341635291,1731049832898,-291.67163634,0.00020856,2]
[341635294,1731049832913,-8.32836366,0.00020856,2]
[341635296,1731049832927,-24900.0,0.00020857,2]
[341635298,1731049832939,-285.828218,0.00020891,2]
[341635301,1731049832952,-2521.22536403,0.00021816,2]
[341635303,1731049832965,-165.27705473,0.00021817,2]
[341635305,1731049832978,-18861.24534,0.0002182,2]
[341635308,1731049832990,-224.37532143,0.0002182,2]
[341635310,1731049833002,-366.56192099,0.00021916,2]
[341635312,1731049833014,-500.0,0.00021916,2]
[341635315,1731049833027,-500.0,0.00021916,2]
[341635317,1731049833039,-500.0,0.00021916,2]
[341635319,1731049833052,-500.0,0.00021916,2]
[341635321,1731049833064,-500.0,0.00021916,2]
[341635323,1731049833074,-500.0,0.00021916,2]
[341635326,1731049833087,-500.0,0.00021916,2]
[341635328,1731049833099,-500.0,0.00021916,2]
[341635330,1731049833111,-500.0,0.00021916,2]
[341635332,1731049833124,-500.0,0.00021916,2]
[341635333,1731049833136,-500.0,0.00021916,2]
[341635334,1731049833149,-500.0,0.00021916,2]
[341635337,1731049833160,-500.0,0.00021916,2]
[341635339,1731049833174,-500.0,0.00021916,2]
[341635342,1731049833187,-500.0,0.00021916,2]
[341635344,1731049833200,-500.0,0.00021916,2]
[341635346,1731049833213,-526.45424091,0.00021916,2]
[341635348,1731049833223,-500.0,0.00021916,2]
[341635349,1731049833234,-500.0,0.00021916,2]
[341635350,1731049833244,-500.0,0.00021916,2]
[341635351,1731049833255,-500.0,0.00021916,2]
[341635352,1731049833268,-500.0,0.00021916,2]
[341635353,1731049833281,-500.0,0.00021916,2]
[341635354,1731049833295,-500.0,0.00021916,2]
[341635355,1731049833308,-262.89842372,0.00021916,2]
[341635356,1731049833320,-500.0,0.00021916,2]
[341635357,1731049833331,-500.0,0.00021916,2]
[341635358,1731049833342,-500.0,0.00021916,2]
[341635359,1731049833353,-224.00172372,0.00021916,2]
[341635360,1731049833364,-500.0,0.00021916,2]
[341635361,1731049833375,-500.0,0.00021916,2]
[341635362,1731049833385,-500.0,0.00021916,2]
[341635363,1731049833397,-500.0,0.00021916,2]
[341635364,1731049833410,-500.0,0.00021916,2]
[341635365,1731049833421,-500.0,0.00021916,2]
[341635366,1731049833432,-500.0,0.00021916,2]
[341635367,1731049833443,-500.0,0.00021916,2]
[341635368,1731049833454,-500.0,0.00021916,2]
[341635369,1731049833465,-500.0,0.00021916,2]
[341635370,1731049833476,-500.0,0.00021917,2]
[341635371,1731049833487,-518.95624876,0.00021917,2]
[341635372,1731049833499,-500.0,0.00021917,2]
[341635373,1731049833511,-500.0,0.00021917,2]
[341635374,1731049833522,-500.0,0.00021917,2]
[341635375,1731049833534,-500.0,0.00021917,2]
[341635376,1731049833545,-454.1823233,0.00021917,2]
[341635377,1731049833558,-277.1111244,0.00021917,2]
[341635378,1731049833570,-500.0,0.00021917,2]
[341635379,1731049833581,-612.93161682,0.00021917,2]
[341635380,1731049833596,-500.0,0.00021917,2]
[341635381,1731049833607,-500.0,0.00021917,2]
[341635382,1731049833619,-500.0,0.00021917,2]
[341635383,1731049833631,-500.0,0.00021917,2]
[341635384,1731049833641,-500.0,0.00021917,2]
[341635385,1731049833653,-500.0,0.00021917,2]
[341635386,1731049833665,-500.0,0.00021917,2]
[341635387,1731049833679,-500.0,0.00021917,2]
[341635388,1731049833691,-500.0,0.00021917,2]
[341635389,1731049833703,-500.0,0.00021917,2]
[341635390,1731049833715,-369.96730436,0.00021917,2]
[341635391,1731049833726,-500.0,0.00021917,2]
[341635392,1731049833739,-500.0,0.00021917,2]
[341635393,1731049833750,-41.07829283,0.00021917,2]
[341635469,1731049839141,-458.92170717,0.00021917,2]
[341635471,1731049839151,-538.98563426,0.00021917,2]
[341635473,1731049839160,-500.0,0.00021917,2]
[341635475,1731049839170,-535.36231132,0.00021917,2]
[341635477,1731049839180,-637.3239596,0.00021917,2]
[341635479,1731049839189,-500.0,0.00021917,2]
[341635481,1731049839198,-500.0,0.00021917,2]
[341635483,1731049839207,-500.0,0.00021917,2]
[341635486,1731049839225,-150.61570374,0.00021917,2]
[341635488,1731049839238,-584.61907849,0.00021917,2]
[341635490,1731049839248,-500.0,0.00021917,2]
[341635493,1731049839259,-500.0,0.00021917,2]
[341635495,1731049839269,-576.3781736,0.00021917,2]
[341635497,1731049839278,-472.61171794,0.00021917,2]
[341635499,1731049839288,-500.0,0.00021917,2]
[341635501,1731049839298,-500.0,0.00021917,2]
[341635503,1731049839309,-500.0,0.00021917,2]
[341635505,1731049839319,-502.71278832,0.00021917,2]
[341635506,1731049839328,-246.6002425,0.00021917,2]
[341635507,1731049839339,-500.0,0.00021917,2]
[341635508,1731049839349,-500.0,0.00021917,2]
[341635509,1731049839358,-500.0,0.00021917,2]
[341635510,1731049839368,-180.87726891,0.00021917,2]
[341635511,1731049839378,-606.31086036,0.00021917,2]
[341635512,1731049839388,-500.8,0.00021917,2]
[341635513,1731049839398,-500.0,0.00021917,2]